Department Family,Entity,Date,Expense Type,Expense Area,Supplier,Transaction Number,AP Amount,VAT Registration Number,Purchase Invoice Number
Department of Health,Bridgewater Community Healthcare NHS Foundation Trust,7/31/2019,Data Lines,Oldham Estates,VIRGIN MEDIA BUSINESS LTD,30998724,"35,502.48",591819014,928278069
Department of Health,Bridgewater Community Healthcare NHS Foundation Trust,7/31/2019,Data Lines,Oldham Estates,VIRGIN MEDIA BUSINESS LTD,30998754,"26,784.61",591819014,928278070
Department of Health,Bridgewater Community Healthcare NHS Foundation Trust,7/31/2019,Services Received - NHSTs,IT Systems and Management,ST HELENS & KNOWSLEY HOSPITALS NHS TRUST,31027579,"60,045.72",654943996,16786010
Department of Health,Bridgewater Community Healthcare NHS Foundation Trust,7/31/2019,Training Expenses,INNOVATION & IMPROVEMENT TEAM,QUESTBACK LTD,31037656,"35,000.00",864178301,GBR712335
Department of Health,Bridgewater Community Healthcare NHS Foundation Trust,7/31/2019,Computer Software/License,Computing,PHOENIX PARTNERSHIP (LEEDS) LTD,31051421,"123,410.45",721671841,10311
Department of Health,Bridgewater Community Healthcare NHS Foundation Trust,7/31/2019,Service Charge,Organisational Costs,CARE QUALITY COMMISSION,31052290,"112,660.00",GB 948043217,42518581
Department of Health,Bridgewater Community Healthcare NHS Foundation Trust,7/31/2019,Secndd staff frm othr org,Offender Health - Wymott,NATIONAL OFFENDER MANAGEMENT SERVICE,31073100,"27,468.32",,2182056
Department of Health,Bridgewater Community Healthcare NHS Foundation Trust,7/31/2019,Drugs,Offender Health - Wymott,LLOYDS RETAIL CHEMISTS LTD,31073172,"39,796.82",,82531
Department of Health,Bridgewater Community Healthcare NHS Foundation Trust,7/31/2019,CNST contributions,Finance,NHS LITIGATION AUTHORITY,31073199,"33,234.80",,SICX00145225
Department of Health,Bridgewater Community Healthcare NHS Foundation Trust,7/31/2019,SrvcsRecd-FoundationTrust,Urgent Care Centre - Halton,ST HELENS & KNOWSLEY HOSPITALS NHS TRUST,31073205,"40,391.35",654943996,16786014
Department of Health,Bridgewater Community Healthcare NHS Foundation Trust,7/31/2019,Services Received - PCTs,Dental - St Helens,ST HELENS & KNOWSLEY HOSPITALS NHS TRUST,31073240,"36,502.61",654943996,16786348
Department of Health,Bridgewater Community Healthcare NHS Foundation Trust,7/31/2019,Secndd staff frm othr org,Offender Health - Wymott,NATIONAL OFFENDER MANAGEMENT SERVICE,31073254,"27,778.42",,2187285
Department of Health,Bridgewater Community Healthcare NHS Foundation Trust,7/31/2019,Continence Products,Continence Adult - Warrington,ESSITY UK LTD,31097322,"37,969.45",GB 600 4331 06,6401525908
Department of Health,Bridgewater Community Healthcare NHS Foundation Trust,7/31/2019,Continence Products,Continence Adult Halton,ESSITY UK LTD,31097333,"25,418.30",GB 600 4331 06,6401536313
Department of Health,Bridgewater Community Healthcare NHS Foundation Trust,7/31/2019,Contr Estate Management,General Management,SKYLINE PROPERTY SOLUTIONS LTD,31115687,"44,394.15",,SPS3012I001
Department of Health,Bridgewater Community Healthcare NHS Foundation Trust,7/31/2019,Contr Estate Management,General Management,SKYLINE PROPERTY SOLUTIONS LTD,31115695,"146,012.97",,SPS3012I002
Department of Health,Bridgewater Community Healthcare NHS Foundation Trust,7/31/2019,Rent,Fingerpost Health Park,NHS PROPERTY SERVICES LTD,31117781,"47,074.92",,H61442
Department of Health,Bridgewater Community Healthcare NHS Foundation Trust,7/31/2019,Rent,Europa Boulevard,NHS PROPERTY SERVICES LTD,31117783,"28,758.32",,H66624
Department of Health,Bridgewater Community Healthcare NHS Foundation Trust,7/31/2019,Rent,Fingerpost Health Park,NHS PROPERTY SERVICES LTD,31117790,"48,032.50",,H73005
Department of Health,Bridgewater Community Healthcare NHS Foundation Trust,7/31/2019,Rent,Europa Boulevard,NHS PROPERTY SERVICES LTD,31117791,"28,758.32",,H74239
Department of Health,Bridgewater Community Healthcare NHS Foundation Trust,7/31/2019,Rent,Fingerpost Health Park,NHS PROPERTY SERVICES LTD,31117810,"32,994.55",,H160588
Department of Health,Bridgewater Community Healthcare NHS Foundation Trust,7/31/2019,Rent,Fingerpost Health Park,NHS PROPERTY SERVICES LTD,31137562,"32,994.55",,H109136
Department of Health,Bridgewater Community Healthcare NHS Foundation Trust,7/31/2019,Rates,General Management,WARRINGTON BOROUGH COUNCIL,31143707,"86,184.00",152847160,1026698604211031986184
Department of Health,Bridgewater Community Healthcare NHS Foundation Trust,7/31/2019,Lease Rents,Widnes HCRC,COMMUNITY HEALTH PARTNERSHIPS LTD,31174468,"77,310.35",GB782562113,0060105048
Department of Health,Bridgewater Community Healthcare NHS Foundation Trust,7/31/2019,CNST contributions,Finance,NHS LITIGATION AUTHORITY,31174473,"33,234.80",,SICX00144190
Department of Health,Bridgewater Community Healthcare NHS Foundation Trust,7/31/2019,Lease Rents,Bath Street,COMMUNITY HEALTH PARTNERSHIPS LTD,31174491,"62,138.84",GB782562113,0060115186
Department of Health,Bridgewater Community Healthcare NHS Foundation Trust,7/31/2019,Lease Rents,Child Development Centre Orford,COMMUNITY HEALTH PARTNERSHIPS LTD,31174491,"47,880.77",GB782562113,0060115186
Department of Health,Bridgewater Community Healthcare NHS Foundation Trust,7/31/2019,Lease Rents,Widnes HCRC,COMMUNITY HEALTH PARTNERSHIPS LTD,31174495,"77,310.25",GB782562113,0060115171
Department of Health,Bridgewater Community Healthcare NHS Foundation Trust,7/31/2019,Continence Products,Continence Adult - Warrington,ESSITY UK LTD,31206313,"43,679.32",GB 600 4331 06,6401536308
Department of Health,Bridgewater Community Healthcare NHS Foundation Trust,7/31/2019,Independent Sector,Intermediate Care Bed Based Team - Warrington,PHOENIX HEALTH WARRINGTON LTD,31206327,"39,000.00",,201920QTR2
Department of Health,Bridgewater Community Healthcare NHS Foundation Trust,7/31/2019,Services Received - NHSTs,Minor Injuries Unit and Walk In Centre - St Helens,ST HELENS & KNOWSLEY HOSPITALS NHS TRUST,31240957,"26,731.45",654943996,16785989
Department of Health,Bridgewater Community Healthcare NHS Foundation Trust,7/31/2019,Rent,Bridges Learning Centre,NHS PROPERTY SERVICES LTD,31268085,"25,486.00",,00000001H16970
Department of Health,Bridgewater Community Healthcare NHS Foundation Trust,7/31/2019,Rent,Bridges Learning Centre,NHS PROPERTY SERVICES LTD,31268096,"27,081.98",,00000001H36348
Department of Health,Bridgewater Community Healthcare NHS Foundation Trust,7/31/2019,Rent,Bridges Learning Centre,NHS PROPERTY SERVICES LTD,31268098,"33,195.34",,H49252
Department of Health,Bridgewater Community Healthcare NHS Foundation Trust,7/31/2019,Rent,Penketh Health Centre,NHS PROPERTY SERVICES LTD,31268120,"34,026.86",,H50678
Department of Health,Bridgewater Community Healthcare NHS Foundation Trust,7/31/2019,SrvcsRecd-FoundationTrust,Offender Health - Wymott,GREATER MANCHESTER WEST MENTAL HEALTH NHS FOUNDATION TRUST,31268146,"150,000.00",654929594,0000031703
Department of Health,Bridgewater Community Healthcare NHS Foundation Trust,7/31/2019,SrvcsRecd-FoundationTrust,Offender Health - Risley,GREATER MANCHESTER WEST MENTAL HEALTH NHS FOUNDATION TRUST,31268151,"61,507.46",654929594,0000031916
Department of Health,Bridgewater Community Healthcare NHS Foundation Trust,7/31/2019,SrvcsRecd-FoundationTrust,Offender Health - St Catherines,GREATER MANCHESTER WEST MENTAL HEALTH NHS FOUNDATION TRUST,31268151,"32,463.28",654929594,0000031916
Department of Health,Bridgewater Community Healthcare NHS Foundation Trust,7/31/2019,SrvcsRecd-FoundationTrust,Offender Health HM Prison Healthcare (Hindley),GREATER MANCHESTER WEST MENTAL HEALTH NHS FOUNDATION TRUST,31268151,"86,655.58",654929594,0000031916
Department of Health,Bridgewater Community Healthcare NHS Foundation Trust,7/31/2019,SrvcsRecd-FoundationTrust,Offender Health - Risley,GREATER MANCHESTER WEST MENTAL HEALTH NHS FOUNDATION TRUST,31268156,"61,508.00",654929594,0000032150
Department of Health,Bridgewater Community Healthcare NHS Foundation Trust,7/31/2019,SrvcsRecd-FoundationTrust,Offender Health - St Catherines,GREATER MANCHESTER WEST MENTAL HEALTH NHS FOUNDATION TRUST,31268156,"32,462.40",654929594,0000032150
Department of Health,Bridgewater Community Healthcare NHS Foundation Trust,7/31/2019,SrvcsRecd-FoundationTrust,Offender Health HM Prison Healthcare (Hindley),GREATER MANCHESTER WEST MENTAL HEALTH NHS FOUNDATION TRUST,31268156,"86,656.00",654929594,0000032150
Department of Health,Bridgewater Community Healthcare NHS Foundation Trust,7/31/2019,SrvcsRecd-FoundationTrust,Offender Health - Barton Moss,GREATER MANCHESTER WEST MENTAL HEALTH NHS FOUNDATION TRUST,31268161,"27,746.24",654929594,0000032469
Department of Health,Bridgewater Community Healthcare NHS Foundation Trust,7/31/2019,SrvcsRecd-FoundationTrust,Offender Health - Risley,GREATER MANCHESTER WEST MENTAL HEALTH NHS FOUNDATION TRUST,31268161,"61,507.49",654929594,0000032469
Department of Health,Bridgewater Community Healthcare NHS Foundation Trust,7/31/2019,SrvcsRecd-FoundationTrust,Offender Health - St Catherines,GREATER MANCHESTER WEST MENTAL HEALTH NHS FOUNDATION TRUST,31268161,"38,375.33",654929594,0000032469
Department of Health,Bridgewater Community Healthcare NHS Foundation Trust,7/31/2019,SrvcsRecd-FoundationTrust,Offender Health HM Prison Healthcare (Hindley),GREATER MANCHESTER WEST MENTAL HEALTH NHS FOUNDATION TRUST,31268161,"86,655.57",654929594,0000032469
Department of Health,Bridgewater Community Healthcare NHS Foundation Trust,7/31/2019,SrvcsRecd-FoundationTrust,Offender Health - Barton Moss,GREATER MANCHESTER WEST MENTAL HEALTH NHS FOUNDATION TRUST,31268197,"89,253.50",654929594,0000032733
Department of Health,Bridgewater Community Healthcare NHS Foundation Trust,7/31/2019,SrvcsRecd-FoundationTrust,Offender Health - St Catherines,GREATER MANCHESTER WEST MENTAL HEALTH NHS FOUNDATION TRUST,31268197,"38,375.31",654929594,0000032733
Department of Health,Bridgewater Community Healthcare NHS Foundation Trust,7/31/2019,SrvcsRecd-FoundationTrust,Offender Health HM Prison Healthcare (Hindley),GREATER MANCHESTER WEST MENTAL HEALTH NHS FOUNDATION TRUST,31268197,"86,655.00",654929594,0000032733
Department of Health,Bridgewater Community Healthcare NHS Foundation Trust,7/31/2019,Contr Estate Management,General Management,SKYLINE PROPERTY SOLUTIONS LTD,31300998,"61,246.76",,SPS3012I003
Department of Health,Bridgewater Community Healthcare NHS Foundation Trust,7/31/2019,Rent,Penketh Health Centre,NHS PROPERTY SERVICES LTD,31340595,"89,123.04",,00000001H20490
